[Event "NJSK 2018 Meisjes C"]
[Site "Assen, Netherlands"]
[Date "2018.05.01"]
[Round "3.5"]
[White "Honkoop, Stella"]
[Black "Bogouslavskii, Veronique"]
[Result "0-1"]
[TimeControl "40/90m+30m+30sec/move"]
[WhiteElo "1583"]
[BlackElo "1004"]

1. e4 {[%clk 01:30:57]} {[%emt 00:00:02]} e5 {[%clk 01:30:56]} {[%emt
00:00:04]} 2. Nf3 {[%clk 01:31:23]} {[%emt 00:00:05]} Nc6 {[%clk 01:31:18]}
{[%emt 00:00:08]} 3. d4 {[%clk 01:31:46]} {[%emt 00:00:07]} exd4 {[%clk
01:31:38]} {[%emt 00:00:10]} 4. Nxd4 {[%clk 01:32:11]} {[%emt 00:00:06]} Nf6
{[%clk 01:31:53]} {[%emt 00:00:14]} 5. Nc3 {[%clk 01:32:20]} {[%emt 00:00:21]}
Bb4 {[%clk 01:31:58]} {[%emt 00:00:24]} 6. Nxc6 {[%clk 01:32:15]} {[%emt
00:00:35]} bxc6 {[%clk 01:32:09]} {[%emt 00:00:20]} 7. Bd3 {[%clk 01:32:14]}
{[%emt 00:00:31]} d5 {[%clk 01:31:45]} {[%emt 00:00:54]} 8. exd5 {[%clk
01:32:04]} {[%emt 00:00:40]} cxd5 {[%clk 01:32:03]} {[%emt 00:00:13]} 9. O-O
{[%clk 01:31:34]} {[%emt 00:01:00]} O-O {[%clk 01:31:42]} {[%emt 00:00:50]} 10.
Bg5 {[%clk 01:30:24]} {[%emt 00:01:40]} Be6 {[%clk 01:30:42]} {[%emt 00:01:30]}
11. Qf3 {[%clk 01:28:05]} {[%emt 00:02:50]} Be7 {[%clk 01:24:49]} {[%emt
00:06:22]} 12. Rfe1 {[%clk 01:21:17]} {[%emt 00:07:18]} h6 {[%clk 01:17:18]}
{[%emt 00:08:01]} 13. Bf4 {[%clk 01:12:47]} {[%emt 00:09:01]} Qd7 {[%clk
01:13:00]} {[%emt 00:04:47]} 14. h3 {[%clk 01:05:10]} {[%emt 00:08:07]} Rab8
{[%clk 01:08:19]} {[%emt 00:05:20]} 15. Rab1 {[%clk 00:58:03]} {[%emt
00:07:29]} Rb7 {[%clk 00:52:05]} {[%emt 00:16:44]} 16. Be5 {[%clk 00:51:43]}
{[%emt 00:06:50]} c5 {[%clk 00:41:32]} {[%emt 00:11:02]} 17. Red1 {[%clk
00:44:48]} {[%emt 00:07:25]} Rd8 {[%clk 00:32:35]} {[%emt 00:09:27]} 18. b3
{[%clk 00:39:41]} {[%emt 00:05:37]} Nh7 {[%clk 00:20:49]} {[%emt 00:12:16]} 19.
Qg3 {[%clk 00:29:21]} {[%emt 00:10:50]} Nf6 {[%clk 00:20:02]} {[%emt 00:01:18]}
20. Na4 {[%clk 00:25:58]} {[%emt 00:03:53]} Qc6 {[%clk 00:16:30]} {[%emt
00:04:00]} 21. Nc3 {[%clk 00:24:13]} {[%emt 00:02:18]} Bd6 {[%clk 00:15:30]}
{[%emt 00:01:29]} 22. Bxd6 {[%clk 00:23:14]} {[%emt 00:01:29]} Qxd6 {[%clk
00:15:47]} {[%emt 00:00:14]} 23. Qxd6 {[%clk 00:23:06]} {[%emt 00:00:38]} Rxd6
{[%clk 00:16:15]} {[%emt 00:00:01]} 24. Re1 {[%clk 00:20:04]} {[%emt 00:03:33]}
Rd8 {[%clk 00:16:04]} {[%emt 00:00:41]} 25. Na4 {[%clk 00:18:26]} {[%emt
00:02:08]} Rc7 {[%clk 00:15:55]} {[%emt 00:00:38]} 26. Nc3 {[%clk 00:17:05]}
{[%emt 00:01:51]} Kf8 {[%clk 00:12:00]} {[%emt 00:04:26]} 27. Rbd1 {[%clk
00:17:20]} {[%emt 00:00:15]} Rcd7 {[%clk 00:09:14]} {[%emt 00:03:16]} 28. Ne2
{[%clk 00:16:22]} {[%emt 00:01:28]} c4 {[%clk 00:08:34]} {[%emt 00:01:10]} 29.
Bg6 {[%clk 00:11:19]} {[%emt 00:05:33]} fxg6 {[%clk 00:08:14]} {[%emt
00:00:49]} 30. Nd4 {[%clk 00:11:09]} {[%emt 00:00:40]} Bf7 {[%clk 00:08:02]}
{[%emt 00:00:42]} 31. f3 {[%clk 00:10:44]} {[%emt 00:00:54]} cxb3 {[%clk
00:07:25]} {[%emt 00:01:08]} 32. axb3 {[%clk 00:10:39]} {[%emt 00:00:35]} Re8
{[%clk 00:07:20]} {[%emt 00:00:35]} 33. Kf2 {[%clk 00:10:37]} {[%emt 00:00:32]}
Rxe1 {[%clk 00:07:41]} {[%emt 00:00:09]} 34. Rxe1 {[%clk 00:10:54]} {[%emt
00:00:13]} Re7 {[%clk 00:07:37]} {[%emt 00:00:35]} 35. Ra1 {[%clk 00:11:01]}
{[%emt 00:00:23]} Rc7 {[%clk 00:07:41]} {[%emt 00:00:25]} 36. Re1 {[%clk
00:09:48]} {[%emt 00:01:44]} g5 {[%clk 00:07:32]} {[%emt 00:00:39]} 37. Kf1
{[%clk 00:08:45]} {[%emt 00:01:32]} Kg8 {[%clk 00:07:35]} {[%emt 00:00:27]} 38.
Re3 {[%clk 00:07:06]} {[%emt 00:02:09]} Bg6 {[%clk 00:06:46]} {[%emt 00:01:17]}
39. c3 {[%clk 00:07:26]} {[%emt 00:00:12]} a6 {[%clk 00:06:13]} {[%emt
00:01:04]} 40. g4 {[%clk 00:04:47]} {[%emt 00:03:09]} Kf7 {[%clk 00:04:29]}
{[%emt 00:02:14]} 41. Ne6 {[%clk 00:02:07]} {[%emt 00:03:10]} Re7 {[%clk
00:03:20]} {[%emt 00:01:35]} 42. Nd8+ {[%clk 00:01:43]} {[%emt 00:00:58]} Ke8
{[%clk 00:03:16]} {[%emt 00:00:20]} 43. Rxe7+ {[%clk 00:02:01]} {[%emt
00:00:25]} Kxe7 {[%clk 00:03:32]} {[%emt 00:00:14]} 44. Nc6+ {[%clk 00:02:27]}
{[%emt 00:00:05]} Kd6 {[%clk 00:03:29]} {[%emt 00:00:32]} 45. Nd4 {[%clk
00:01:11]} {[%emt 00:01:46]} Ne8 {[%clk 00:02:35]} {[%emt 00:01:21]} 46. Ke2
{[%clk 00:01:07]} {[%emt 00:00:38]} Ke5 {[%clk 00:01:13]} {[%emt 00:01:46]} 47.
Ke3 {[%clk 00:00:33]} {[%emt 00:01:10]} Nc7 {[%clk 00:00:51]} {[%emt 00:00:52]}
48. Nc6+ {[%clk 00:29:31]} {[%emt 00:01:31]} Kd6 {[%clk 00:30:00]} {[%emt
00:01:20]} 49. Nd4 {[%clk 00:26:59]} {[%emt 00:03:03]} Ne6 {[%clk 00:27:05]}
{[%emt 00:03:24]} 50. Ne2 {[%clk 00:23:58]} {[%emt 00:03:31]} Ke5 {[%clk
00:26:37]} {[%emt 00:00:59]} 51. b4 {[%clk 00:23:14]} {[%emt 00:01:14]} Nf4
{[%clk 00:26:15]} {[%emt 00:00:52]} 52. Ng1 {[%clk 00:19:39]} {[%emt 00:04:05]}
Bd3 {[%clk 00:26:17]} {[%emt 00:00:19]} 53. Kf2 {[%clk 00:19:34]} {[%emt
00:00:44]} d4 {[%clk 00:26:19]} {[%emt 00:00:27]} 0-1

[Event "NJSK 2018 Meisjes C"]
[Site "Assen, Netherlands"]
[Date "2018.05.01"]
[Round "3.6"]
[White "Arnold, Kiri"]
[Black "Hatzmann, Mirthe"]
[Result "0-1"]
[TimeControl "40/90m+30m+30sec/move"]
[WhiteElo "1340"]
[BlackElo "1323"]

1. e4 {[%clk 01:30:54]} {[%emt 00:00:06]} e5 {[%clk 01:30:53]} {[%emt
00:00:07]} 2. d4 {[%clk 01:30:33]} {[%emt 00:00:51]} exd4 {[%clk 01:31:08]}
{[%emt 00:00:15]} 3. c3 {[%clk 01:30:22]} {[%emt 00:00:41]} dxc3 {[%clk
01:31:12]} {[%emt 00:00:27]} 4. Nxc3 {[%clk 01:30:40]} {[%emt 00:00:12]} Nc6
{[%clk 01:31:26]} {[%emt 00:00:16]} 5. Bc4 {[%clk 01:29:29]} {[%emt 00:01:40]}
Bb4 {[%clk 01:30:44]} {[%emt 00:01:13]} 6. Nf3 {[%clk 01:27:25]} {[%emt
00:02:34]} Nge7 {[%clk 01:30:08]} {[%emt 00:01:06]} 7. O-O {[%clk 01:06:04]}
{[%emt 00:21:51]} Bxc3 {[%clk 01:28:01]} {[%emt 00:02:38]} 8. bxc3 {[%clk
01:06:26]} {[%emt 00:00:07]} O-O {[%clk 01:27:31]} {[%emt 00:01:00]} 9. Bg5
{[%clk 01:00:35]} {[%emt 00:06:21]} d6 {[%clk 01:21:08]} {[%emt 00:06:53]} 10.
h3 {[%clk 00:56:47]} {[%emt 00:04:17]} h6 {[%clk 01:15:53]} {[%emt 00:05:46]}
11. Bh4 {[%clk 00:56:03]} {[%emt 00:01:14]} Qd7 {[%clk 01:13:58]} {[%emt
00:02:39]} 12. Re1 {[%clk 00:51:00]} {[%emt 00:05:18]} Ng6 {[%clk 01:10:30]}
{[%emt 00:03:58]} 13. Bg3 {[%clk 00:50:02]} {[%emt 00:01:28]} Nge5 {[%clk
01:08:17]} {[%emt 00:02:44]} 14. Bb3 {[%clk 00:47:50]} {[%emt 00:02:42]} Qe7
{[%clk 01:03:36]} {[%emt 00:05:11]} 15. Kh2 {[%clk 00:44:00]} {[%emt 00:04:19]}
Qf6 {[%clk 01:00:53]} {[%emt 00:03:13]} 16. Nh4 {[%clk 00:34:03]} {[%emt
00:10:27]} Ng6 {[%clk 00:54:32]} {[%emt 00:06:51]} 17. Nxg6 {[%clk 00:31:43]}
{[%emt 00:02:50]} Qxg6 {[%clk 00:54:20]} {[%emt 00:00:42]} 18. f4 {[%clk
00:28:07]} {[%emt 00:04:06]} Qf6 {[%clk 00:41:33]} {[%emt 00:13:17]} 19. Qd3
{[%clk 00:24:14]} {[%emt 00:04:22]} Qg6 {[%clk 00:37:30]} {[%emt 00:04:33]} 20.
Rad1 {[%clk 00:19:58]} {[%emt 00:04:46]} Kh8 {[%clk 00:32:32]} {[%emt
00:05:28]} 21. Bc2 {[%clk 00:16:29]} {[%emt 00:03:59]} Re8 {[%clk 00:28:05]}
{[%emt 00:04:57]} 22. Qe2 {[%clk 00:14:57]} {[%emt 00:02:03]} Qe6 {[%clk
00:24:16]} {[%emt 00:04:19]} 23. Bb3 {[%clk 00:12:54]} {[%emt 00:02:34]} Qe7
{[%clk 00:23:06]} {[%emt 00:01:40]} 24. Qf3 {[%clk 00:11:11]} {[%emt 00:02:13]}
Be6 {[%clk 00:21:45]} {[%emt 00:01:51]} 25. c4 {[%clk 00:09:40]} {[%emt
00:02:01]} Na5 {[%clk 00:19:32]} {[%emt 00:02:43]} 26. Qc3 {[%clk 00:09:19]}
{[%emt 00:00:51]} Nxb3 {[%clk 00:18:24]} {[%emt 00:01:39]} 27. axb3 {[%clk
00:09:33]} {[%emt 00:00:16]} Rad8 {[%clk 00:17:07]} {[%emt 00:01:46]} 28. Bf2
{[%clk 00:08:27]} {[%emt 00:01:36]} Bc8 {[%clk 00:15:21]} {[%emt 00:02:16]} 29.
Bd4 {[%clk 00:08:06]} {[%emt 00:00:51]} Rg8 {[%clk 00:14:21]} {[%emt 00:01:30]}
30. Ra1 {[%clk 00:08:04]} {[%emt 00:00:32]} a6 {[%clk 00:14:08]} {[%emt
00:00:43]} 31. Qd2 {[%clk 00:08:22]} {[%emt 00:00:12]} Qd7 {[%clk 00:13:24]}
{[%emt 00:01:14]} 32. f5 {[%clk 00:08:27]} {[%emt 00:00:25]} f6 {[%clk
00:13:16]} {[%emt 00:00:38]} 33. Rad1 {[%clk 00:08:45]} {[%emt 00:00:12]} Qf7
{[%clk 00:12:56]} {[%emt 00:00:50]} 34. Qe2 {[%clk 00:08:57]} {[%emt 00:00:19]}
Rge8 {[%clk 00:12:59]} {[%emt 00:00:26]} 35. Qf3 {[%clk 00:09:05]} {[%emt
00:00:22]} b5 {[%clk 00:12:03]} {[%emt 00:01:27]} 36. cxb5 {[%clk 00:09:11]}
{[%emt 00:00:24]} axb5 {[%clk 00:12:15]} {[%emt 00:00:18]} 37. Rc1 {[%clk
00:09:36]} {[%emt 00:00:05]} Bb7 {[%clk 00:11:55]} {[%emt 00:00:49]} 38. Qg4
{[%clk 00:08:20]} {[%emt 00:01:46]} Re7 {[%clk 00:10:58]} {[%emt 00:01:27]} 39.
b4 {[%clk 00:07:05]} {[%emt 00:01:46]} Rde8 {[%clk 00:10:13]} {[%emt 00:01:15]}
40. Qe2 {[%clk 00:00:48]} {[%emt 00:06:47]} Rxe4 {[%clk 00:08:48]} {[%emt
00:01:54]} 41. Qxb5 {[%clk 00:16:28]} {[%emt 00:14:50]} Rxe1 {[%clk 00:29:07]}
{[%emt 00:10:11]} 42. Rxe1 {[%clk 00:16:31]} {[%emt 00:00:28]} Rxe1 {[%clk
00:29:02]} {[%emt 00:00:34]} 43. Qxb7 {[%clk 00:16:34]} {[%emt 00:00:27]} Qd7
{[%clk 00:27:40]} {[%emt 00:01:51]} 44. Qf3 {[%clk 00:10:36]} {[%emt 00:06:29]}
d5 {[%clk 00:24:33]} {[%emt 00:03:37]} 45. Qg3 {[%clk 00:08:47]} {[%emt
00:02:18]} Qd6 {[%clk 00:21:34]} {[%emt 00:03:29]} 46. Qxd6 {[%clk 00:08:54]}
{[%emt 00:00:23]} cxd6 {[%clk 00:22:03]} 47. b5 {[%clk 00:08:52]} {[%emt
00:00:33]} Rd1 {[%clk 00:20:13]} {[%emt 00:02:21]} 48. Bf2 {[%clk 00:07:32]}
{[%emt 00:01:50]} Rb1 {[%clk 00:19:49]} {[%emt 00:00:54]} 49. b6 {[%clk
00:07:44]} {[%emt 00:00:18]} Rb4 {[%clk 00:19:25]} {[%emt 00:00:54]} 50. Bg1
{[%clk 00:07:15]} {[%emt 00:00:59]} d4 {[%clk 00:19:21]} {[%emt 00:00:34]} 51.
b7 {[%clk 00:06:26]} {[%emt 00:01:18]} d3 {[%clk 00:18:03]} {[%emt 00:01:48]}
52. Be3 {[%clk 00:06:32]} {[%emt 00:00:24]} Rxb7 {[%clk 00:18:09]} {[%emt
00:00:24]} 53. Kg1 {[%clk 00:06:37]} {[%emt 00:00:25]} Rb2 {[%clk 00:18:12]}
{[%emt 00:00:27]} 0-1

[Event "NJSK 2018 Meisjes C"]
[Site "Assen, Netherlands"]
[Date "2018.05.01"]
[Round "3.7"]
[White "Velasco, Kathleen"]
[Black "Van Essen, Marieke"]
[Result "1/2-1/2"]
[TimeControl "40/90m+30m+30sec/move"]
[WhiteElo "1284"]
[BlackElo "1282"]

1. e4 {[%clk 01:30:58]} e5 {[%clk 01:30:58]} {[%emt 00:00:04]} 2. Nf3 {[%clk
01:31:23]} {[%emt 00:00:04]} Nc6 {[%clk 01:31:24]} {[%emt 00:00:04]} 3. Bc4
{[%clk 01:31:48]} {[%emt 00:00:05]} Bc5 {[%clk 01:31:51]} {[%emt 00:00:04]} 4.
c3 {[%clk 01:32:13]} {[%emt 00:00:05]} Nf6 {[%clk 01:31:48]} {[%emt 00:00:33]}
5. d4 {[%clk 01:32:27]} {[%emt 00:00:15]} exd4 {[%clk 01:32:12]} {[%emt
00:00:06]} 6. cxd4 {[%clk 01:32:51]} {[%emt 00:00:06]} Bb4+ {[%clk 01:31:35]}
{[%emt 00:01:08]} 7. Bd2 {[%clk 01:32:44]} {[%emt 00:00:37]} Bxd2+ {[%clk
01:31:21]} {[%emt 00:00:44]} 8. Nbxd2 {[%clk 01:33:07]} {[%emt 00:00:08]} d5
{[%clk 01:27:43]} {[%emt 00:04:08]} 9. exd5 {[%clk 01:31:04]} {[%emt 00:02:33]}
Nxd5 {[%clk 01:28:07]} {[%emt 00:00:06]} 10. O-O {[%clk 01:27:38]} {[%emt
00:03:55]} O-O {[%clk 01:27:27]} {[%emt 00:01:11]} 11. Re1 {[%clk 01:26:58]}
{[%emt 00:01:10]} Nb6 {[%clk 01:24:02]} {[%emt 00:03:56]} 12. Qc2 {[%clk
01:16:39]} {[%emt 00:10:49]} Nxd4 {[%clk 01:17:37]} {[%emt 00:06:55]} 13. Nxd4
{[%clk 01:16:59]} {[%emt 00:00:09]} Qxd4 {[%clk 01:17:58]} {[%emt 00:00:09]} 14.
Bd3 {[%clk 01:16:39]} {[%emt 00:00:49]} g6 {[%clk 01:15:09]} {[%emt 00:03:20]}
15. Nf3 {[%clk 01:16:14]} {[%emt 00:00:55]} Qd6 {[%clk 01:11:21]} {[%emt
00:04:18]} 16. h3 {[%clk 01:15:36]} {[%emt 00:01:08]} Nd5 {[%clk 01:07:33]}
{[%emt 00:04:19]} 17. Bc4 {[%clk 01:12:46]} {[%emt 00:03:18]} Be6 {[%clk
01:06:12]} {[%emt 00:01:51]} 18. Qb3 {[%clk 01:11:12]} {[%emt 00:02:05]} a5
{[%clk 00:57:50]} {[%emt 00:08:52]} 19. a4 {[%clk 01:08:16]} {[%emt 00:03:26]}
Rfe8 {[%clk 00:52:56]} {[%emt 00:05:24]} 20. Nd4 {[%clk 00:48:05]} {[%emt
00:20:39]} c6 {[%clk 00:40:38]} {[%emt 00:12:50]} 21. Qxb7 {[%clk 00:39:07]}
{[%emt 00:09:27]} Nc7 {[%clk 00:34:50]} {[%emt 00:06:18]} 22. Bxe6 {[%clk
00:32:24]} {[%emt 00:07:13]} Nxe6 {[%clk 00:34:18]} {[%emt 00:01:02]} 23. Nxe6
{[%clk 00:24:52]} {[%emt 00:08:02]} fxe6 {[%clk 00:33:59]} {[%emt 00:00:49]} 24.
Rad1 {[%clk 00:22:46]} {[%emt 00:02:36]} Qb4 {[%clk 00:27:03]} {[%emt
00:07:26]} 25. Qxc6 {[%clk 00:18:34]} {[%emt 00:04:42]} Rac8 {[%clk 00:26:30]}
{[%emt 00:01:04]} 26. Qb5 {[%clk 00:14:44]} {[%emt 00:04:19]} Rb8 {[%clk
00:25:35]} {[%emt 00:01:26]} 27. Qxb4 {[%clk 00:14:46]} {[%emt 00:00:28]} Rxb4
{[%clk 00:25:56]} {[%emt 00:00:08]} 28. Ra1 {[%clk 00:14:58]} {[%emt 00:00:19]}
Rxb2 {[%clk 00:26:02]} {[%emt 00:00:24]} 29. Re5 {[%clk 00:15:07]} {[%emt
00:00:20]} Rf8 {[%clk 00:24:06]} {[%emt 00:02:26]} 30. f3 {[%clk 00:15:13]}
{[%emt 00:00:24]} Rf5 {[%clk 00:24:26]} {[%emt 00:00:10]} 31. Rxe6 {[%clk
00:15:23]} {[%emt 00:00:21]} Rd5 {[%clk 00:23:26]} {[%emt 00:01:30]} 32. Re4
{[%clk 00:10:53]} {[%emt 00:05:00]} Rdd2 {[%clk 00:22:01]} {[%emt 00:01:56]} 33.
Rg4 {[%clk 00:10:47]} {[%emt 00:00:35]} Kf7 {[%clk 00:19:17]} {[%emt 00:03:15]}
34. h4 {[%clk 00:09:56]} {[%emt 00:01:21]} h6 {[%clk 00:18:56]} {[%emt
00:00:50]} 35. Kh2 {[%clk 00:09:02]} {[%emt 00:01:24]} Rf2 {[%clk 00:17:35]}
{[%emt 00:01:52]} 36. Kh3 {[%clk 00:09:05]} {[%emt 00:00:26]} Kf6 {[%clk
00:17:17]} {[%emt 00:00:49]} 37. Rc1 {[%clk 00:08:45]} {[%emt 00:00:50]} Rfc2
{[%clk 00:15:33]} {[%emt 00:02:13]} 38. Rxc2 {[%clk 00:08:17]} {[%emt
00:00:59]} Rxc2 {[%clk 00:15:59]} {[%emt 00:00:04]} 39. Re4 {[%clk 00:08:12]}
{[%emt 00:00:33]} Rb2 {[%clk 00:15:48]} {[%emt 00:00:44]} 40. Rc4 {[%clk
00:07:53]} {[%emt 00:00:49]} Rb4 {[%clk 00:15:57]} {[%emt 00:00:21]} 41. Rc6+
{[%clk 00:08:19]} {[%emt 00:00:03]} Kf7 {[%clk 00:16:15]} {[%emt 00:00:11]} 42.
Rc7+ {[%clk 00:08:36]} {[%emt 00:00:14]} Kg8 {[%clk 00:16:28]} {[%emt
00:00:17]} 43. Rc6 {[%clk 00:08:09]} {[%emt 00:00:54]} Kf7 {[%clk 00:16:50]}
{[%emt 00:00:10]} 44. Rc7+ {[%clk 00:07:38]} {[%emt 00:01:01]} Kg8 {[%clk
00:17:17]} {[%emt 00:00:04]} 45. g4 {[%clk 00:05:53]} {[%emt 00:02:15]} Rxa4
{[%clk 00:17:21]} {[%emt 00:00:26]} 46. Kg3 {[%clk 00:06:01]} {[%emt 00:00:22]}
Rb4 {[%clk 00:11:58]} {[%emt 00:05:53]} 47. Ra7 {[%clk 00:06:14]} {[%emt
00:00:16]} a4 {[%clk 00:12:13]} {[%emt 00:00:15]} 48. Kf2 {[%clk 00:05:32]}
{[%emt 00:01:08]} Rf4 {[%clk 00:02:56]} {[%emt 00:09:51]} 49. Kg3 {[%clk
00:05:44]} {[%emt 00:00:18]} Rb4 {[%clk 00:03:17]} {[%emt 00:00:09]} 50. g5
{[%clk 00:04:10]} {[%emt 00:02:04]} h5 {[%clk 00:02:46]} {[%emt 00:01:01]} 51.
Ra6 {[%clk 00:03:33]} {[%emt 00:01:07]} Kf7 {[%clk 00:02:58]} {[%emt 00:00:19]}
52. Rf6+ {[%clk 00:03:27]} {[%emt 00:00:35]} Kg7 {[%clk 00:03:15]} {[%emt
00:00:13]} 53. Ra6 {[%clk 00:03:51]} {[%emt 00:00:06]} Kf7 {[%clk 00:03:10]}
{[%emt 00:00:35]} 54. Ra7+ {[%clk 00:04:06]} {[%emt 00:00:15]} Kg8 {[%clk
00:03:25]} {[%emt 00:00:15]} 55. Kh3 {[%clk 00:02:55]} {[%emt 00:01:42]} Rf4
{[%clk 00:02:45]} {[%emt 00:01:09]} 56. Ra8+ {[%clk 00:02:34]} {[%emt
00:00:51]} Kf7 {[%clk 00:02:02]} {[%emt 00:01:13]} 57. Ra7+ {[%clk 00:02:47]}
{[%emt 00:00:17]} Kg8 {[%clk 00:01:56]} {[%emt 00:00:35]} 58. Kg3 {[%clk
00:03:11]} {[%emt 00:00:06]} Rb4 {[%clk 00:02:15]} {[%emt 00:00:09]} 1/2-1/2

[Event "NJSK 2018 Meisjes C"]
[Site "Assen, Netherlands"]
[Date "2018.05.01"]
[Round "3.8"]
[White "Jonkman Inza, Amelia Marry"]
[Black "Den Heijer, Rolinde"]
[Result "0-1"]
[TimeControl "40/90m+30m+30sec/move"]
[WhiteElo "1222"]
[BlackElo "1538"]

1. d4 {[%clk 01:30:58]} {[%emt 00:00:01]} d5 {[%clk 01:30:53]} {[%emt
00:00:07]} 2. c4 {[%clk 01:30:58]} {[%emt 00:00:30]} e6 {[%clk 01:30:56]}
{[%emt 00:00:27]} 3. Nc3 {[%clk 01:29:04]} {[%emt 00:02:24]} Nf6 {[%clk
01:30:41]} {[%emt 00:00:45]} 4. Nf3 {[%clk 01:27:53]} {[%emt 00:01:41]} Be7
{[%clk 01:28:48]} {[%emt 00:02:22]} 5. Bf4 {[%clk 01:24:32]} {[%emt 00:03:52]}
c6 {[%clk 01:23:58]} {[%emt 00:05:19]} 6. e3 {[%clk 01:22:08]} {[%emt
00:02:55]} O-O {[%clk 01:23:06]} {[%emt 00:01:21]} 7. Bd3 {[%clk 01:20:15]}
{[%emt 00:02:23]} Nbd7 {[%clk 01:17:24]} {[%emt 00:06:13]} 8. O-O {[%clk
01:18:19]} {[%emt 00:02:25]} b6 {[%clk 01:14:22]} {[%emt 00:03:33]} 9. Ne5
{[%clk 01:05:49]} {[%emt 00:13:00]} Bb7 {[%clk 01:11:08]} {[%emt 00:03:43]} 10.
Qf3 {[%clk 00:56:12]} {[%emt 00:10:07]} c5 {[%clk 00:59:33]} {[%emt 00:12:05]}
11. Qg3 {[%clk 00:46:08]} {[%emt 00:10:35]} Nh5 {[%clk 00:56:19]} {[%emt
00:03:43]} 12. Qh3 {[%clk 00:44:07]} {[%emt 00:02:32]} g6 {[%clk 00:55:05]}
{[%emt 00:01:44]} 13. Bh6 {[%clk 00:32:15]} {[%emt 00:12:21]} Ng7 {[%clk
00:54:28]} {[%emt 00:01:08]} 14. Nf3 {[%clk 00:25:17]} {[%emt 00:07:29]} Rc8
{[%clk 00:45:17]} {[%emt 00:09:40]} 15. Nd2 {[%clk 00:22:23]} {[%emt 00:03:23]}
cxd4 {[%clk 00:42:19]} {[%emt 00:03:29]} 16. exd4 {[%clk 00:20:51]} {[%emt
00:02:02]} Bg5 {[%clk 00:41:16]} {[%emt 00:01:33]} 17. cxd5 {[%clk 00:18:16]}
{[%emt 00:03:04]} Bxh6 {[%clk 00:35:46]} {[%emt 00:06:00]} 18. Qxh6 {[%clk
00:17:39]} {[%emt 00:01:08]} exd5 {[%clk 00:35:36]} {[%emt 00:00:41]} 19. Nf3
{[%clk 00:15:28]} {[%emt 00:02:41]} Nf6 {[%clk 00:33:46]} {[%emt 00:02:21]} 20.
Rfe1 {[%clk 00:14:14]} {[%emt 00:01:44]} a6 {[%clk 00:32:38]} {[%emt 00:01:38]}
21. Rac1 {[%clk 00:11:22]} {[%emt 00:03:22]} Qd6 {[%clk 00:30:05]} {[%emt
00:03:03]} 22. Ng5 {[%clk 00:05:54]} {[%emt 00:05:58]} Ne6 {[%clk 00:28:38]}
{[%emt 00:01:57]} 23. Ne2 {[%clk 00:04:31]} {[%emt 00:01:54]} Nxg5 {[%clk
00:28:06]} {[%emt 00:01:02]} 24. Qxg5 {[%clk 00:04:46]} {[%emt 00:00:15]} Kg7
{[%clk 00:28:06]} {[%emt 00:00:30]} 25. Ng3 {[%clk 00:04:05]} {[%emt 00:01:11]}
Kh8 {[%clk 00:26:26]} {[%emt 00:02:09]} 26. h3 {[%clk 00:02:19]} {[%emt
00:02:16]} Nd7 {[%clk 00:25:58]} {[%emt 00:00:58]} 27. Qh6 {[%clk 00:01:54]}
{[%emt 00:00:55]} Nf6 {[%clk 00:24:24]} {[%emt 00:02:04]} 28. h4 {[%clk
00:01:33]} {[%emt 00:00:51]} Ng4 {[%clk 00:23:29]} {[%emt 00:01:25]} 29. Qg5
{[%clk 00:01:14]} {[%emt 00:00:49]} h5 {[%clk 00:21:30]} {[%emt 00:02:29]} 30.
Kf1 {[%clk 00:00:54]} {[%emt 00:00:50]} Rxc1 {[%clk 00:21:26]} {[%emt
00:00:34]} 31. Rxc1 {[%clk 00:01:06]} {[%emt 00:00:18]} Kh7 {[%clk 00:21:33]}
{[%emt 00:00:23]} 32. Qd2 {[%clk 00:01:15]} {[%emt 00:00:22]} Kg7 {[%clk
00:21:09]} {[%emt 00:00:53]} 33. f4 {[%clk 00:01:26]} {[%emt 00:00:19]} Qf6
{[%clk 00:20:27]} {[%emt 00:01:09]} 34. f5 {[%clk 00:01:16]} {[%emt 00:00:44]}
Qxh4 {[%clk 00:19:48]} {[%emt 00:01:09]} 35. Qf4 {[%clk 00:00:36]} {[%emt
00:01:11]} Nh2+ {[%clk 00:19:43]} {[%emt 00:00:34]} 36. Kg1 {[%clk 00:00:48]}
{[%emt 00:00:18]} Qxf4 {[%clk 00:20:04]} {[%emt 00:00:09]} 37. Rf1 {[%clk
00:00:58]} {[%emt 00:00:16]} Nxf1 {[%clk 00:20:27]} {[%emt 00:00:10]} 38. Nxf1
{[%clk 00:01:12]} {[%emt 00:00:16]} Qxd4+ {[%clk 00:20:45]} {[%emt 00:00:12]}
39. Kh2 {[%clk 00:01:32]} {[%emt 00:00:10]} Qxd3 {[%clk 00:21:08]} {[%emt
00:00:07]} 40. Ng3 {[%clk 00:01:41]} {[%emt 00:00:21]} Re8 {[%clk 00:21:21]}
{[%emt 00:00:17]} 41. fxg6 {[%clk 00:01:49]} {[%emt 00:00:22]} fxg6 {[%clk
00:21:42]} {[%emt 00:00:09]} 42. b3 {[%clk 00:02:11]} {[%emt 00:00:09]} h4
{[%clk 00:21:59]} {[%emt 00:00:12]} 43. Nh1 {[%clk 00:02:30]} {[%emt 00:00:11]}
Re2 {[%clk 00:22:09]} {[%emt 00:00:20]} 44. a4 {[%clk 00:02:47]} {[%emt
00:00:13]} d4 {[%clk 00:22:19]} {[%emt 00:00:20]} 45. b4 {[%clk 00:02:56]}
{[%emt 00:00:22]} Rxg2 {[%clk 00:22:42]} 0-1